[Event "Turkey IS Bank Super League 2017"]
[Site "Darica-Kocaeli"]
[Date "2017.08.04"]
[Round "11"]
[White "Arat, Ufuk Sezen"]
[Black "Samani, Yamac"]
[Result "1/2-1/2"]
[ECO "D02"]
[WhiteElo "2400"]
[BlackElo "2263"]
[Annotator "ChessBase"]
[PlyCount "74"]
[EventType "team-tourn"]
[EventCountry "TUR"]
[SourceTitle "playchess.com"]
[Source "ChessBase"]
[SourceQuality "1"]
[TimeControl "40/5400+30:1800+30"]

1. d4 {[%emt 0:00:30]} d5 {[%emt 0:01:00]} 2. Nf3 {[%emt 0:02:30]} Nf6 {[%emt 0:00:30]} 3. g3 {[%emt 0:00:30]} c6 {[%emt 0:01:30]} 4. Bg2 {[%emt 0:00:30]} Bf5 {[%emt 0:00:30]} 5. Nh4 {[%emt 0:02:30]} Bg6 {[%emt 0:02:30]} 6. Nxg6 {[%emt 0:00:30]} hxg6 {[%emt 0:00:30]} 7. Nd2 {[%emt 0:01:30]} Nbd7 {[%emt 0:00:30]} 8. O-O {[%emt 0:05:30]} e6 {[%emt 0:01:30]} 9. e4 {[%emt 0:07:30]} Nxe4 {[%emt 0:01:30]} 10. Nxe4 {[%emt 0:00:30]} dxe4 {[%emt 0:00:30]} 11. Bxe4 {[%emt 0:00:00]} Be7 {[%emt 0:03:30]} 12. b3 {[%emt 0:03:00]} Qa5 {[%emt 0:01:30]} 13. c4 {[%emt 0:09:30]} Rd8 {[%emt 0:10:30]} 14. Bg2 {[%emt 0:15:30]} Nf6 {[%emt 0:09:30]} 15. Bd2 {[%emt 0:04:30]} Bb4 {[%emt 0:02:30]} 16. Be3 {[%emt 0:02:30]} O-O {[%emt 0:22:30]} 17. Qe2 {[%emt 0:09:30]} Rd7 {[%emt 0:04:30]} 18. Rad1 {[%emt 0:12:38]} Rfd8 {[%emt 0:03:30]} 19. f4 {[%emt 0:08:12]} Bc3 {[%emt 0:03:30]} 20. d5 {[%emt 0:00:22]} cxd5 {[%emt 0:01:30]} 21. cxd5 {[%emt 0:00:05]} Nxd5 {[%emt 0:01:30]} 22. Bxd5 {[%emt 0:00:11]} Rxd5 {[%emt 0:00:30]} 23. Rxd5 {[%emt 0:00:05]} Rxd5 {[%emt 0:05:30]} 24. Rd1 {[%emt 0:00:05]} a6 {[%emt 0:03:31]} 25. Qf3 {[%emt 0:01:56]} Rxd1+ {[%emt 0:01:29]} 26. Qxd1 {[%emt 0:00:03]} Qd5 {[%emt 0:00:19]} 27. Qxd5 {[%emt 0:01:58]} exd5 {[%emt 0:00:06]} 28. Kf2 {[%emt 0:00:29]} Kf8 {[%emt 0:01:08]} 29. Ke2 {[%emt 0:00:57]} Ke7 {[%emt 0:01:48]} 30. Kd3 {[%emt 0:00:50]} Bf6 {[%emt 0:00:48]} 31. g4 {[%emt 0:00:13]} Ke6 {[%emt 0:00:34]} 32. h3 {[%emt 0:02:11]} Kd6 {[%emt 0:02:20]} 33. a4 {[%emt 0:03:55]} Kc6 {[%emt 0:01:40]} 34. b4 {[%emt 0:01:01]} Be7 {[%emt 0:02:25]} 35. Bd2 {[%emt 0:00:08]} Bf6 {[%emt 0:01:01]} 36. Be3 {[%emt 0:00:26]} Be7 {[%emt 0:00:57]} 37. Bd2 {[%emt 0:00:06]} Bf6 {[%emt 0:06:42]} 1/2-1/2

[Event "Turkey IS Bank Super League 2017"]
[Site "Darica-Kocaeli"]
[Date "2017.08.04"]
[Round "11"]
[White "Mammadova, Gulnar"]
[Black "Onur, Cigdem"]
[Result "1-0"]
[ECO "B30"]
[WhiteElo "2357"]
[BlackElo "1699"]
[Annotator "NA"]
[PlyCount "81"]
[EventType "team-tourn"]
[EventCountry "TUR"]
[SourceTitle "playchess.com"]
[Source "ChessBase"]
[SourceQuality "1"]
[TimeControl "40/5400+30:1800+30"]

1. e4 {[%emt 0:00:30]} c5 {[%emt 0:01:00]} 2. Nf3 {[%emt 0:00:30]} Nc6 {[%emt 0:00:30]} 3. Bb5 {[%emt 0:00:30]} e6 {[%emt 0:00:30]} 4. O-O {[%emt 0:00:00]} Nge7 {[%emt 0:00:00]} 5. Re1 {[%emt 0:00:00]} a6 {[%emt 0:00:00]} 6. Bf1 {[%emt 0:00:00]} d5 {[%emt 0:00:00]} 7. d3 {[%emt 0:00:00]} Ng6 {[%emt 0:09:00] B30: Sicilian: 2...Nc6 3 Bb5, lines without ...g6} (7... d4 8. e5 Nf5 9. g3 b6 10. Bg2 Bb7 11. Nbd2 Be7 12. Ne4 h5 13. h4 Qd7 14. Bf4 Nb4 15. Nfg5 {½-½ (49) Movsesian,S (2677)-Miton,K (2612) Czech Republic 2017}) 8. c3 {[%emt 0:07:30]} d4 {[%emt 0:16:30]} 9. e5 {[%emt 0:03:30]} Be7 {[%emt 0:02:30]} 10. Nbd2 {[%emt 0:02:30]} O-O {[%emt 0:06:30]} 11. g3 $146 {[%emt 0:05:30]} ({Find the theoretical novelty and annotate with similar games:} 11. a4 b6 12. Nc4 Rb8 13. Qe2 Bb7 14. g3 b5 15. axb5 axb5 {½-½ (76) Taeib,S (2147)-Amdouni,Z (2264) Hammamet 2013}) 11... Qc7 {[%emt 0:09:30]} 12. Qe2 {[%emt 0:00:30]} b5 {[%emt 0:13:30]} 13. h4 {[%emt 0:00:30]} h5 {[%emt 0:04:30]} 14. Bg2 {[%emt 0:10:30]} Bb7 {[%emt 0:06:30]} 15. Nb3 {[%emt 0:09:30]} Rfd8 {[%emt 0:06:30]} (15... dxc3 $11 {keeps the balance.} 16. bxc3 Rac8) 16. Bd2 {[%emt 0:04:30]} (16. cxd4 $14 Nxd4 17. Nfxd4 cxd4 18. Bxb7 Qxb7 19. Qxh5) 16... Nf8 {[%emt 0:12:04]} 17. cxd4 {[%emt 0:01:30]} cxd4 {[%emt 0:01:29]} 18. Rac1 {[%emt 0:01:30]} Qd7 {[%emt 0:04:16]} 19. Nc5 {[%emt 0:01:30]} ({White should try} 19. Ng5 $18) 19... Bxc5 {[%emt 0:00:36]} 20. Rxc5 {[%emt 0:00:30]} Nh7 {[%emt 0:01:51]} 21. Bf4 {[%emt 0:05:30]} Rac8 {[%emt 0:01:39]} 22. Nd2 {[%emt 0:00:30]} g6 {[%emt 0:01:30]} 23. Ne4 {[%emt 0:01:30]} Nb4 {[%emt 0:00:38]} 24. Rxc8 {[%emt 0:02:30]} Rxc8 {[%emt 0:00:37]} 25. Qd2 {[%emt 0:00:30]} Bxe4 {[%emt 0:00:36]} 26. Bxe4 {[%emt 0:01:30]} Qe7 $16 {[%emt 0:00:32]} 27. Rc1 {[%emt 0:00:30]} Rxc1+ {[%emt 0:00:51]} 28. Qxc1 {[%emt 0:00:30]} Nd5 {[%emt 0:00:09]} 29. Bxd5 {[%emt 0:07:30]} exd5 {[%emt 0:00:37]} 30. Qc8+ {[%emt 0:00:30]} Kg7 {[%emt 0:00:42]} 31. Qxa6 {[%emt 0:00:00]} g5 {[%emt 0:00:12]} 32. hxg5 {[%emt 0:01:00]} Nxg5 {[%emt 0:00:05]} 33. Bxg5 {[%emt 0:01:30]} Qxg5 {[%emt 0:00:07]} 34. Qf6+ {[%emt 0:00:30]} Qxf6 {[%emt 0:00:40]} 35. exf6+ {[%emt 0:00:30]} Kxf6 {[%emt 0:00:00]} 36. a3 {[%emt 0:00:00]} b4 {[%emt 0:01:37]} 37. a4 {[%emt 0:01:00]} Ke6 {[%emt 0:00:23]} 38. b3 {[%emt 0:00:30]} Kd6 {[%emt 0:00:51]} 39. Kg2 {[%emt 0:00:30]} Ke6 {[%emt 0:00:00]} 40. Kh3 {[%emt 0:00:00]} Kd6 {[%emt 0:30:36]} 41. Kh4 {[%emt 0:00:00]} 1-0

[Event "Turkey IS Bank Super League 2017"]
[Site "Darica-Kocaeli"]
[Date "2017.08.04"]
[Round "11"]
[White "Kerigan, Demre"]
[Black "Yilmaz, Goktan"]
[Result "1/2-1/2"]
[ECO "B50"]
[WhiteElo "2354"]
[BlackElo "2202"]
[Annotator "NA"]
[PlyCount "73"]
[EventType "team-tourn"]
[EventCountry "TUR"]
[SourceTitle "playchess.com"]
[Source "ChessBase"]
[SourceQuality "1"]
[TimeControl "40/5400+30:1800+30"]

1. e4 {[%emt 0:01:30]} c5 {[%emt 0:01:00]} 2. Nf3 {[%emt 0:00:00]} d6 {[%emt 0:00:30]} 3. c3 {[%emt 0:00:00]} Nf6 {[%emt 0:00:00]} 4. Be2 {[%emt 0:00:30]} g6 {[%emt 0:01:00]} 5. O-O {[%emt 0:00:30]} Bg7 {[%emt 0:00:30]} 6. Bb5+ {[%emt 0:00:30]} Bd7 {[%emt 0:00:30]} 7. Bxd7+ {[%emt 0:00:30]} Qxd7 {[%emt 0:00:30]} 8. Re1 {[%emt 0:00:30]} Nc6 {[%emt 0:01:30]} 9. d4 {[%emt 0:00:30]} cxd4 {[%emt 0:01:30]} 10. cxd4 {[%emt 0:00:30]} O-O {[%emt 0:00:30] LiveBook: 5 Games} 11. Nc3 {[%emt 0:00:30] B50: Sicilian: 2...d6, Miscellaneous} d5 {[%emt 0:07:30]} (11... Rac8 12. h3 d5 13. Ne5 Qd8 14. Nxc6 bxc6 15. e5 Nd7 16. Be3 e6 17. Rc1 f6 18. exf6 Qxf6 {Glek,I (2566)-Sprenger,J (2505) Belgium 2005 (76)}) 12. e5 {[%emt 0:02:30]} Ne8 {[%emt 0:00:30]} 13. Bf4 $146 {[%emt 0:19:30]} ({Predecessor:} 13. h4 Nc7 14. h5 Rad8 15. Be3 Qg4 16. Qb3 Qd7 {0-1 (63) Flores,D (2440)-Fiorito,F (2420) Villa Ballester 2004}) 13... Nc7 {[%emt 0:00:30]} 14. Qd2 {[%emt 0:00:30]} Ne6 {[%emt 0:02:30]} 15. Rad1 {[%emt 0:01:30]} Nxf4 {[%emt 0:04:30]} 16. Qxf4 {[%emt 0:03:30]} e6 {[%emt 0:01:30]} 17. h4 {[%emt 0:05:30]} f6 {[%emt 0:02:30]} 18. Qg4 {[%emt 0:03:30]} fxe5 {[%emt 0:02:30]} 19. Nxe5 {[%emt 0:08:30]} Nxe5 {[%emt 0:04:30]} 20. dxe5 {[%emt 0:00:30]} Qf7 {[%emt 0:00:30]} 21. Qe2 {[%emt 0:07:30]} a6 {[%emt 0:01:30]} 22. Qe3 {[%emt 0:06:30]} Rac8 {[%emt 0:04:30]} 23. g3 {[%emt 0:02:30]} Qe7 {[%emt 0:05:30]} 24. Rd2 {[%emt 0:09:30]} Qb4 {[%emt 0:01:30]} 25. a3 {[%emt 0:03:30]} Qg4 {[%emt 0:05:30]} 26. Kg2 {[%emt 0:01:30]} Rc4 {[%emt 0:05:30]} 27. f3 {[%emt 0:07:56]} Qf5 {[%emt 0:00:30]} 28. f4 {[%emt 0:02:44]} Rfc8 {[%emt 0:03:30]} 29. Ne2 {[%emt 0:02:56]} Bf8 $11 {[%emt 0:03:30]} 30. Nd4 {[%emt 0:01:47]} Qf7 {[%emt 0:00:30]} 31. Qd3 {[%emt 0:00:49]} Bc5 {[%emt 0:03:30]} 32. Nf3 {[%emt 0:00:08]} Be7 {[%emt 0:04:30]} 33. Ree2 {[%emt 0:01:05]} b5 {[%emt 0:03:30]} 34. Nd4 {[%emt 0:01:20]} Bc5 {[%emt 0:01:30]} 35. Nf3 {[%emt 0:00:30]} Be7 {[%emt 0:00:00]} 36. Nd4 {[%emt 0:00:40]} Bc5 {[%emt 0:00:00]} 37. Nf3 {[%emt 0:01:02]} 1/2-1/2

[Event "Turkey IS Bank Super League 2017"]
[Site "Darica-Kocaeli"]
[Date "2017.08.04"]
[Round "11"]
[White "Osmak, Iulija"]
[Black "Buyukasik, Diyap"]
[Result "1/2-1/2"]
[ECO "A48"]
[WhiteElo "2353"]
[BlackElo "2285"]
[Annotator "NA"]
[PlyCount "87"]
[EventType "team-tourn"]
[EventCountry "TUR"]
[SourceTitle "playchess.com"]
[Source "ChessBase"]
[SourceQuality "1"]
[TimeControl "40/5400+30:1800+30"]

1. d4 {[%emt 0:00:30]} Nf6 {[%emt 0:01:00]} 2. Bf4 {[%emt 0:00:30]} g6 {[%emt 0:00:30]} 3. e3 {[%emt 0:00:30]} Bg7 {[%emt 0:00:30]} 4. Nf3 {[%emt 0:00:00]} O-O {[%emt 0:00:00] LiveBook: 1657 Games} 5. Be2 {[%emt 0:00:00]} d6 {[%emt 0:00:00]} 6. h3 {[%emt 0:00:30]} c5 {[%emt 0:00:00]} 7. c3 {[%emt 0:00:30]} Be6 {[%emt 0:00:00]} 8. Nbd2 {[%emt 0:01:30]} Qb6 {[%emt 0:00:30] A48: 1 d4 Nf6 2 Nf3 g6: Torre, London and Colle Systems} 9. Qc1 {[%emt 0:04:30]} (9. Qc2 Nc6 10. O-O Rac8 11. dxc5 Qxc5 12. e4 Qb6 13. Be3 Qc7 14. Qa4 a6 15. Nd4 Bd7 16. Qb3 {0-1 (46) Khotenashvili,B (2504)-Harika,D (2505) Beijing 2014}) 9... Nc6 {[%emt 0:00:00]} 10. Ng5 {[%emt 0:01:30]} cxd4 {[%emt 0:07:00]} 11. exd4 {[%emt 0:03:30]} Bd5 $146 {[%emt 0:05:30]} ({Predecessor:} 11... Bd7 12. O-O Rac8 13. Nc4 Qc7 14. Re1 Nd5 15. Bh2 h6 {1-0 (45) Salna,A (1936)-Gudeika,D (1987) Kaunas 2016}) 12. O-O {[%emt 0:01:30]} Rac8 {[%emt 0:06:30]} 13. Be3 {[%emt 0:01:30]} Na5 {[%emt 0:09:30]} 14. a4 {[%emt 0:08:30]} Qc6 {[%emt 0:07:30]} 15. Ngf3 {[%emt 0:01:30]} Ne4 {[%emt 0:05:30]} 16. Bb5 {[%emt 0:01:30]} Qc7 {[%emt 0:01:30]} 17. Qe1 {[%emt 0:03:30]} a6 {[%emt 0:01:30]} 18. Bd3 {[%emt 0:00:30]} Nxd2 {[%emt 0:07:30]} 19. Nxd2 {[%emt 0:00:00]} e5 {[%emt 0:02:30]} 20. dxe5 {[%emt 0:03:00]} dxe5 {[%emt 0:00:30]} 21. f3 {[%emt 0:00:30]} Nc4 {[%emt 0:13:30]} 22. Nxc4 {[%emt 0:01:30]} (22. Bxc4 {[%emt 0:01:30]}) 22... Bxc4 {[%emt 0:00:30]} 23. Bxc4 {[%emt 0:00:30]} Qxc4 {[%emt 0:00:30]} 24. a5 {[%emt 0:01:30]} Rfd8 {[%emt 0:00:30]} 25. Bb6 {[%emt 0:01:30]} Rd5 {[%emt 0:01:30]} 26. Rd1 {[%emt 0:11:30]} Bf8 {[%emt 0:00:30]} 27. Qe4 {[%emt 0:06:30]} Bc5+ {[%emt 0:04:30]} 28. Bxc5 $1 {[%emt 0:00:30]} Qxc5+ {[%emt 0:00:30]} 29. Kh1 {[%emt 0:00:30]} Rcd8 {[%emt 0:00:30]} 30. Rxd5 {[%emt 0:00:00]} Qxd5 {[%emt 0:02:30]} 31. Qb4 {[%emt 0:07:00]} Qd3 {[%emt 0:04:57]} 32. Re1 {[%emt 0:00:30]} Qd5 {[%emt 0:01:58]} 33. Qe7 {[%emt 0:01:30]} Qxa5 {[%emt 0:01:13]} 34. Qxb7 {[%emt 0:08:30]} Rd5 {[%emt 0:06:28]} 35. Kh2 {[%emt 0:04:30]} Kg7 {[%emt 0:01:25]} 36. Qe7 {[%emt 0:02:30]} Qb5 {[%emt 0:01:23]} 37. Qg5 {[%emt 0:13:24]} (37. Qc7 $11) 37... Qxb2 {[%emt 0:05:29]} 38. Rxe5 {[%emt 0:00:09]} Qb8 {[%emt 0:01:02]} 39. f4 {[%emt 0:00:03]} h6 {[%emt 0:00:20]} 40. Qe7 {[%emt 0:00:00]} Rd1 {[%emt 0:02:45]} 41. Re4 {[%emt 0:08:54]} Qb6 {[%emt 0:05:30]} 42. Qe5+ {[%emt 0:00:30]} Kh7 {[%emt 0:00:00]} 43. Re3 {[%emt 0:01:30]} Qd6 {[%emt 0:07:45]} 44. c4 $11 {[%emt 0:04:30]} 1/2-1/2

[Event "Turkey IS Bank Super League 2017"]
[Site "Darica-Kocaeli"]
[Date "2017.08.04"]
[Round "11"]
[White "Yildiz, Betul Cemre"]
[Black "Ozturk, Kubra"]
[Result "1/2-1/2"]
[ECO "C55"]
[WhiteElo "2326"]
[BlackElo "2298"]
[Annotator "ChessBase"]
[PlyCount "66"]
[EventType "team-tourn"]
[EventCountry "TUR"]
[SourceTitle "playchess.com"]
[Source "ChessBase"]
[SourceQuality "1"]
[TimeControl "40/5400+30:1800+30"]

1. e4 {[%emt 0:00:30]} e5 {[%emt 0:01:00]} 2. Nf3 {[%emt 0:00:30]} Nc6 {[%emt 0:00:30]} 3. Bc4 {[%emt 0:00:00]} Nf6 {[%emt 0:02:30]} 4. d3 {[%emt 0:00:00]} Be7 {[%emt 0:00:00]} 5. O-O {[%emt 0:00:00]} O-O {[%emt 0:01:00]} 6. Re1 {[%emt 0:00:00]} d6 {[%emt 0:00:30]} 7. a4 {[%emt 0:00:30]} Na5 {[%emt 0:00:30]} 8. Ba2 {[%emt 0:00:30]} c5 {[%emt 0:02:30]} 9. Na3 {[%emt 0:01:30]} Nc6 {[%emt 0:17:30]} 10. c3 {[%emt 0:00:30]} h6 {[%emt 0:03:30]} 11. Nc2 {[%emt 0:02:30]} Re8 {[%emt 0:10:30]} 12. Bd2 {[%emt 0:03:30]} Bf8 {[%emt 0:02:30]} 13. b4 {[%emt 0:01:30]} cxb4 {[%emt 0:00:30]} 14. cxb4 {[%emt 0:00:00]} Ne7 {[%emt 0:01:30]} 15. Ne3 {[%emt 0:22:00]} Ng6 {[%emt 0:03:30]} 16. Bc4 {[%emt 0:01:30]} Nf4 {[%emt 0:05:30]} 17. Qb3 {[%emt 0:01:30]} Be6 {[%emt 0:02:30]} 18. Bxe6 {[%emt 0:08:30]} Nxe6 {[%emt 0:03:30]} 19. Nd5 {[%emt 0:04:30]} b6 {[%emt 0:09:30]} 20. Nxf6+ {[%emt 0:08:30]} Qxf6 {[%emt 0:00:00]} 21. a5 {[%emt 0:00:30]} g5 {[%emt 0:11:00]} 22. Be3 {[%emt 0:03:30]} Rab8 {[%emt 0:06:27]} 23. axb6 {[%emt 0:02:30]} axb6 {[%emt 0:00:02]} 24. Rec1 {[%emt 0:06:30]} b5 {[%emt 0:04:07]} 25. Nd2 {[%emt 0:11:30]} Qe7 {[%emt 0:09:48]} 26. Nf1 {[%emt 0:05:12]} Nf4 {[%emt 0:01:14]} 27. Ng3 {[%emt 0:01:16]} d5 {[%emt 0:01:36]} 28. Bc5 {[%emt 0:12:08]} Qe6 {[%emt 0:00:20]} 29. Ra5 {[%emt 0:02:48]} dxe4 {[%emt 0:00:50]} 30. Qxe6 {[%emt 0:00:02]} Rxe6 {[%emt 0:00:00]} 31. dxe4 {[%emt 0:00:31]} Nd3 {[%emt 0:01:19]} 32. Rb1 {[%emt 0:00:05]} Nxc5 {[%emt 0:00:18]} 33. bxc5 {[%emt 0:00:02]} Bxc5 {[%emt 0:00:13]} 1/2-1/2

[Event "Turkey IS Bank Super League 2017"]
[Site "Darica-Kocaeli"]
[Date "2017.08.04"]
[Round "11"]
[White "Ozen, Bahadir"]
[Black "Tuncer, Tuna"]
[Result "0-1"]
[ECO "C00"]
[WhiteElo "2315"]
[BlackElo "2274"]
[Annotator "NA"]
[PlyCount "90"]
[EventType "team-tourn"]
[EventCountry "TUR"]
[SourceTitle "playchess.com"]
[Source "ChessBase"]
[SourceQuality "1"]
[TimeControl "40/5400+30:1800+30"]

1. Nf3 {[%emt 0:00:30]} c5 {[%emt 0:01:00]} 2. g3 {[%emt 0:01:30]} d5 {[%emt 0:01:30]} 3. Bg2 {[%emt 0:00:30]} Nf6 {[%emt 0:00:30]} 4. O-O {[%emt 0:00:30]} e6 {[%emt 0:00:30]} 5. d3 {[%emt 0:00:30]} Be7 {[%emt 0:00:30]} 6. Nbd2 {[%emt 0:03:30]} Nc6 {[%emt 0:00:30]} 7. e4 {[%emt 0:00:30]} b6 {[%emt 0:00:30]} 8. Re1 {[%emt 0:00:30]} Bb7 {[%emt 0:02:30]} 9. Qe2 {[%emt 0:01:30] LiveBook: 70 Games} (9. c3 Qc7 10. Qe2 O-O 11. e5 Nd7 12. h4 b5 13. Nf1 b4 14. h5 bxc3 15. bxc3 Ba6 16. h6 g6 17. Bf4 Qa5 18. Rac1 c4 19. d4 Ba3 {1-0 (31) Hera,I (2611)-Ganguly,S (2658) Biel 2017}) 9... Nb4 {[%emt 0:00:00]} 10. Qd1 {[%emt 0:10:30]} Nc6 {[%emt 0:00:00]} 11. Qe2 {[%emt 0:07:30]} Nb4 {[%emt 0:01:30] C00: French: Unusual White 2nd moves} 12. Qd1 {[%emt 0:00:30]} O-O {[%emt 0:00:00]} 13. a3 {[%emt 0:01:30]} Nc6 {[%emt 0:00:00]} 14. exd5 {[%emt 0:00:30]} Nxd5 {[%emt 0:09:30]} 15. d4 $146 {[%emt 0:06:30]} ({Predecessor:} 15. c4 Nf6 16. Nb3 Qd7 17. Be3 Rad8 18. d4 cxd4 19. Nbxd4 Ng4 20. Nxc6 Qxc6 21. Qc2 Bf6 22. h4 Ne5 23. Qe2 Nxf3+ 24. Bxf3 Qxf3 {0-1 (20) Munoz,L (1865)-Kasperek,R Chessfriend.com 2004}) 15... cxd4 {[%emt 0:08:30]} 16. Nb3 {[%emt 0:00:00]} Bf6 {[%emt 0:05:30]} 17. Nbxd4 {[%emt 0:00:00]} Nxd4 {[%emt 0:02:30]} 18. Nxd4 {[%emt 0:00:30]} Rc8 {[%emt 0:00:30]} 19. Nb3 {[%emt 0:07:30]} Qc7 {[%emt 0:06:30]} 20. c3 {[%emt 0:00:30]} Nxc3 {[%emt 0:06:30]} 21. bxc3 {[%emt 0:00:30]} Bxg2 {[%emt 0:00:30]} 22. Kxg2 {[%emt 0:00:30]} Bxc3 {[%emt 0:00:00]} 23. Be3 {[%emt 0:06:30]} Rfd8 {[%emt 0:04:00]} 24. Qe2 {[%emt 0:03:30]} Bxe1 {[%emt 0:02:30]} 25. Rxe1 {[%emt 0:00:30]} Qc2 {[%emt 0:01:30]} 26. Nd4 {[%emt 0:11:30]} Qxe2 {[%emt 0:02:30]} 27. Rxe2 {[%emt 0:00:30]} Rc4 {[%emt 0:04:30]} 28. Nb5 {[%emt 0:01:30]} Rd7 {[%emt 0:05:30]} 29. Rb2 $17 {[%emt 0:01:30]} Kf8 {[%emt 0:09:30]} 30. Kf3 {[%emt 0:02:30]} a6 {[%emt 0:13:51]} 31. Nd4 {[%emt 0:00:30]} Rcxd4 {[%emt 0:04:57]} 32. Bxd4 {[%emt 0:00:30]} Rxd4 {[%emt 0:00:00]} 33. Rxb6 {[%emt 0:00:30]} Rd3+ {[%emt 0:00:17]} 34. Ke4 {[%emt 0:00:30]} Rxa3 {[%emt 0:00:00]} 35. f4 {[%emt 0:00:30]} Ke7 {[%emt 0:00:37]} 36. g4 {[%emt 0:01:30]} Kf6 {[%emt 0:00:40]} 37. g5+ {[%emt 0:00:30]} Kg6 {[%emt 0:00:30]} 38. h4 {[%emt 0:00:00]} Ra4+ {[%emt 0:00:16]} 39. Ke5 {[%emt 0:01:00]} Ra5+ {[%emt 0:00:30]} 40. Kd6 {[%emt 0:00:00]} Rf5 {[%emt 0:00:52]} 41. Rb4 {[%emt 0:00:00]} Kh5 {[%emt 0:00:30]} 42. Ke7 {[%emt 0:00:30]} Kxh4 {[%emt 0:00:30]} 43. Kf8 {[%emt 0:00:00]} g6 {[%emt 0:00:30]} 44. Kg7 {[%emt 0:00:00]} Kg4 {[%emt 0:00:30]} 45. Kh6 {[%emt 0:00:30]} Rxf4 {[%emt 0:00:30]} 0-1

[Event "Turkey IS Bank Super League 2017"]
[Site "Darica-Kocaeli"]
[Date "2017.08.04"]
[Round "11"]
[White "Avramidou, Anastasia"]
[Black "Nomin-Erdene, Davaademberel"]
[Result "1-0"]
[ECO "D20"]
[WhiteElo "2247"]
[BlackElo "2373"]
[Annotator "NA"]
[PlyCount "77"]
[EventType "team-tourn"]
[EventCountry "TUR"]
[SourceTitle "playchess.com"]
[Source "ChessBase"]
[SourceQuality "1"]
[TimeControl "40/5400+30:1800+30"]

1. d4 {[%emt 0:00:30]} d5 {[%emt 0:02:00]} 2. c4 {[%emt 0:00:30]} dxc4 {[%emt 0:00:00]} 3. e3 {[%emt 0:00:00]} e5 {[%emt 0:00:00]} 4. Bxc4 {[%emt 0:01:00]} exd4 {[%emt 0:00:30]} 5. exd4 {[%emt 0:00:30]} Nf6 {[%emt 0:00:30]} 6. Nf3 {[%emt 0:00:30]} Bd6 {[%emt 0:04:30]} 7. O-O {[%emt 0:02:30]} O-O {[%emt 0:00:30]} 8. h3 {[%emt 0:00:30]} h6 {[%emt 0:00:30]} 9. Nc3 {[%emt 0:00:30]} a6 {[%emt 0:03:30] D20: Queen's Gambit Accepted: 3 e3 and 3 e4} (9... Nc6 10. Re1 Bf5 11. Bd2 a6 12. a3 Bh7 13. d5 Ne7 14. Be3 Nf5 15. Bd4 Nxd4 16. Qxd4 Re8 17. Bd3 Bxd3 18. Qxd3 {½-½ (33) Muzychuk,M (2529)-Dzagnidze,N (2570) Beijing 2014}) 10. Ne5 {[%emt 0:10:30]} Nbd7 {[%emt 0:09:30]} 11. Re1 {[%emt 0:02:30]} Nb6 {[%emt 0:08:30]} 12. Bb3 {[%emt 0:02:30]} Be6 $146 {[%emt 0:13:30]} ({Predecessor:} 12... c6 13. Qf3 Nbd5 14. Nxd5 cxd5 15. Bf4 Be6 16. Rad1 Rc8 17. Re2 {0-1 (31) Also Alvarado,L (2178)-Menvielle Laccourreye,A (2265) Gran Canaria 2011}) 13. Bxe6 {[%emt 0:05:30]} fxe6 {[%emt 0:00:30]} 14. Ng4 {[%emt 0:00:00]} Qd7 {[%emt 0:03:30]} 15. Qf3 {[%emt 0:22:00]} Nfd5 {[%emt 0:07:30]} 16. Qe2 {[%emt 0:10:30]} Rae8 {[%emt 0:01:30]} 17. Ne4 {[%emt 0:00:30]} Nf4 {[%emt 0:07:30]} 18. Bxf4 {[%emt 0:01:30]} Rxf4 {[%emt 0:00:00]} 19. g3 {[%emt 0:03:30]} Rf5 {[%emt 0:02:00]} 20. Ne3 {[%emt 0:11:30]} Rff8 {[%emt 0:00:30]} 21. Qh5 {[%emt 0:05:34]} e5 {[%emt 0:13:30]} 22. Ng4 {[%emt 0:04:56]} exd4 {[%emt 0:02:15]} 23. Nef6+ {[%emt 0:00:53]} gxf6 {[%emt 0:01:05]} 24. Rxe8 {[%emt 0:00:09]} Qxe8 {[%emt 0:08:58]} 25. Nxf6+ {[%emt 0:00:06]} Rxf6 {[%emt 0:00:17]} 26. Qxe8+ {[%emt 0:00:04]} Kg7 {[%emt 0:04:11]} 27. Rd1 {[%emt 0:01:02]} Bc5 {[%emt 0:00:59]} 28. Qe5 {[%emt 0:03:04]} Nd7 {[%emt 0:01:27]} 29. Qxc7 {[%emt 0:00:59]} Rf7 {[%emt 0:00:47]} 30. Rd3 {[%emt 0:01:05]} Re7 {[%emt 0:02:30]} 31. b4 {[%emt 0:05:19]} Bxb4 {[%emt 0:00:34]} 32. Rxd4 {[%emt 0:02:02]} Ne5 {[%emt 0:01:30]} 33. Qd8 {[%emt 0:00:33]} Bc5 {[%emt 0:01:09]} 34. Rf4 {[%emt 0:01:02]} Ng6 {[%emt 0:01:05]} 35. Rg4 {[%emt 0:00:53]} Rf7 $18 {[%emt 0:00:33]} 36. Qd3 {[%emt 0:02:48]} Rf6 {[%emt 0:00:30]} 37. Rxg6+ {[%emt 0:00:30]} Rxg6 {[%emt 0:00:30]} 38. Qc3+ {[%emt 0:00:30]} Rf6 {[%emt 0:00:30]} 39. Qxc5 {[%emt 0:00:00]} 1-0